fUST/lending_fUST_20250914
["ID","MTS","AMOUNT","RATE_DAILY","PERIOD"]
[385447798,1757856648601,-480.0,0.00022191,3]
[385447799,1757856648611,-480.0,0.00022191,3]
[385447800,1757856648622,-486.67964897,0.00022191,3]
[385447801,1757856648632,-480.0,0.00022191,3]
[385447802,1757856648642,-480.0,0.00022191,3]
[385447803,1757856648652,-480.0,0.00022191,3]
[385447804,1757856648662,-480.0,0.00022191,3]
[385447805,1757856648671,-480.0,0.00022191,3]
[385447806,1757856648681,-486.00422477,0.00022191,3]
[385447807,1757856648690,-480.0,0.00022191,3]
[385447808,1757856648699,-480.0,0.00022191,3]
[385447809,1757856648709,-480.0,0.00022191,3]
[385447810,1757856648718,-480.0,0.00022191,3]
[385447811,1757856648728,-480.0,0.00022191,3]
[385447812,1757856648738,-480.0,0.00022191,3]
[385447813,1757856648747,-482.70033551,0.00022191,3]
[385447814,1757856648756,-152.073548,0.00022191,7]
[385447815,1757856648766,-151.0,0.00022191,7]
[385447816,1757856648775,-480.0,0.00022191,3]
[385447817,1757856648784,-508.5,0.00022191,3]
[385447818,1757856648793,-480.0,0.00022191,3]
[385447819,1757856648803,-480.0,0.00022191,3]
[385447820,1757856648813,-480.0,0.00022191,3]
[385447821,1757856648822,-480.0,0.00022191,3]
[385447822,1757856648831,-480.0,0.00022191,3]
[385447823,1757856648840,-480.0,0.00022191,3]
[385447824,1757856648849,-480.0,0.00022191,3]
[385447825,1757856648859,-480.0,0.00022191,3]
[385447826,1757856648869,-480.0,0.00022191,3]
[385447827,1757856648878,-480.0,0.00022191,3]
[385447828,1757856648888,-550.81710965,0.00022191,3]
[385447829,1757856648897,-480.0,0.00022191,3]
[385447830,1757856648906,-627.81,0.00022191,3]
[385447831,1757856648915,-480.0,0.00022191,3]
[385447832,1757856648925,-480.0,0.00022191,3]
[385447833,1757856648934,-533.85093713,0.00022191,3]
[385447834,1757856648944,-596.7120857,0.00022191,3]
[385447835,1757856648953,-271.18121365,0.00022191,3]
[385447836,1757856648963,-480.0,0.00022191,3]
[385447837,1757856648972,-480.0,0.00022191,3]
[385447838,1757856648981,-480.0,0.00022191,3]
[385447839,1757856648991,-480.0,0.00022191,3]
[385447840,1757856649000,-314.17035389,0.00022191,3]
[385447841,1757856649009,-480.0,0.00022191,3]
[385447842,1757856649018,-480.0,0.00022191,3]
[385447843,1757856649027,-480.0,0.00022191,3]
[385447844,1757856649037,-480.0,0.00022191,3]
[385447845,1757856649046,-488.90367269,0.00022191,3]
[385447846,1757856649057,-2159.99,0.00022191,3]
[385447847,1757856649066,-480.0,0.00022191,3]
[385447848,1757856649076,-151.0,0.00022191,7]
[385447849,1757856649086,-480.0,0.00022191,3]
[385447850,1757856649095,-480.0,0.00022191,3]
[385447851,1757856649104,-778.87,0.00022191,3]
[385447852,1757856649113,-480.0,0.00022191,3]
[385447853,1757856649123,-487.07207122,0.00022191,3]
[385447854,1757856649132,-480.0,0.00022191,3]
[385447855,1757856649141,-480.0,0.00022191,3]
[385447856,1757856649150,-480.0,0.00022191,3]
[385447857,1757856649160,-246.21616653,0.00022191,3]
[385447858,1757856649169,-1439.71,0.00022191,3]
[385447859,1757856649179,-480.0,0.00022191,3]
[385447860,1757856649188,-480.0,0.00022191,3]
[385447861,1757856649198,-480.0,0.00022191,3]
[385447862,1757856649207,-151.0,0.00022191,7]
[385447863,1757856649216,-480.0,0.00022191,3]
[385447864,1757856649226,-151.873567,0.00022191,7]
[385447865,1757856649235,-480.0,0.00022191,3]
[385447866,1757856649245,-480.0,0.00022191,3]
[385447867,1757856649254,-480.0,0.00022191,3]
[385447868,1757856649264,-480.0,0.00022191,3]
[385447869,1757856649273,-486.26986262,0.00022191,3]
[385447870,1757856649282,-480.0,0.00022191,3]
[385447871,1757856649291,-480.0,0.00022191,2]
[385447872,1757856649301,-480.0,0.00022191,3]
[385447873,1757856649311,-151.0,0.00022191,7]
[385447874,1757856649321,-480.0,0.00022191,3]
[385447875,1757856649331,-480.0,0.00022191,3]
[385447876,1757856649340,-480.0,0.00022191,3]
[385447877,1757856649349,-480.0,0.00022191,3]
[385447878,1757856649358,-562.19,0.00022191,3]
[385447879,1757856649367,-480.0,0.00022191,3]
[385447880,1757856649377,-1240.83,0.00022191,3]
[385447881,1757856649386,-151.0,0.00022191,7]
[385447882,1757856649395,-281.93970919,0.00022191,2]
[385447883,1757856649404,-908.11,0.00022191,3]
[385447884,1757856649414,-480.0,0.00022191,3]
[385447885,1757856649423,-619.06,0.00022191,3]
[385447886,1757856649432,-480.0,0.00022191,3]
[385447887,1757856649441,-1261.09,0.00022191,3]
[385447888,1757856649451,-2368.49,0.00022191,3]
[385447889,1757856649460,-992.11,0.00022191,3]
[385447890,1757856649469,-480.0,0.00022191,3]
[385447891,1757856649479,-480.0,0.00022191,3]
[385447892,1757856649488,-480.0,0.00022191,3]
[385447893,1757856649498,-480.0,0.00022191,3]
[385447894,1757856649508,-480.0,0.00022191,3]
[385447895,1757856649518,-515.79,0.00022191,3]
[385447896,1757856649528,-480.0,0.00022191,3]
[385447897,1757856649540,-480.0,0.00022191,3]
[385447898,1757856649550,-195.44348328,0.00022191,3]
[385447899,1757856649560,-480.0,0.00022191,3]
[385447900,1757856649569,-480.0,0.00022191,3]
[385447901,1757856649579,-480.0,0.00022191,3]
[385447902,1757856649592,-480.0,0.00022191,3]
[385447903,1757856649601,-480.0,0.00022191,3]
[385447904,1757856649612,-574.2,0.00022191,3]
[385447905,1757856649622,-480.0,0.00022191,3]
[385447906,1757856649631,-480.0,0.00022191,3]
[385447907,1757856649641,-480.0,0.00022191,3]
[385447908,1757856649650,-480.0,0.00022191,3]
[385447909,1757856649660,-480.0,0.00022191,3]
[385447910,1757856649669,-480.0,0.00022191,3]
[385447911,1757856649679,-480.0,0.00022191,3]
[385447912,1757856649688,-480.0,0.00022191,3]
[385447913,1757856649697,-480.0,0.00022191,3]
[385447914,1757856649706,-480.0,0.00022191,3]
[385447915,1757856649715,-368.68644481,0.00022191,3]
[385447916,1757856649724,-480.0,0.00022191,3]
[385447917,1757856649733,-480.0,0.00022191,3]
[385447918,1757856649742,-480.0,0.00022191,3]
[385447919,1757856649751,-504.81780725,0.00022191,3]
[385447920,1757856649759,-480.0,0.00022191,3]
[385447921,1757856649768,-480.0,0.00022191,3]
[385447922,1757856649778,-591.61,0.00022191,3]
[385447923,1757856649787,-213.82,0.00022191,7]
[385447924,1757856649796,-480.0,0.00022191,3]
[385447925,1757856649806,-621.28949552,0.00022191,3]
[385447926,1757856649815,-480.0,0.00022191,3]
[385447927,1757856649824,-1117.02,0.00022191,3]
[385447928,1757856649834,-480.0,0.00022191,3]
[385447929,1757856649843,-483.17486433,0.00022191,3]
[385447930,1757856649853,-480.0,0.00022191,3]
[385447931,1757856649862,-480.0,0.00022191,3]
[385447932,1757856649871,-480.0,0.00022191,3]
[385447933,1757856649880,-480.0,0.00022191,3]
[385447934,1757856649890,-480.0,0.00022191,3]
[385447935,1757856649899,-480.0,0.00022191,3]
[385447936,1757856649908,-480.0,0.00022191,3]
[385447937,1757856649918,-480.0,0.00022191,3]
[385447938,1757856649927,-467.66237968,0.00022191,3]
[385447939,1757856649937,-471.31871646,0.00022191,3]
[385447940,1757856649946,-480.0,0.00022191,3]
[385447941,1757856649955,-480.0,0.00022191,3]
[385447942,1757856649965,-1126.16,0.00022191,3]
[385447943,1757856649974,-480.0,0.00022191,3]
[385447944,1757856649984,-995.96,0.00022191,3]
[385447945,1757856649993,-480.0,0.00022191,3]
[385447946,1757856650005,-480.0,0.00022191,3]
[385447947,1757856650034,-369.4033403,0.00022191,3]
[385447948,1757856650045,-480.0,0.00022191,3]
[385447949,1757856650057,-483.1637147,0.00022191,3]
[385447950,1757856650068,-701.12,0.00022191,3]
[385447951,1757856650078,-480.0,0.00022191,3]
[385447952,1757856650088,-480.0,0.00022191,3]
[385447953,1757856650097,-480.0,0.00022191,3]
[385447954,1757856650216,-1065.4,0.00022191,3]
[385447955,1757856650226,-480.0,0.00022191,3]
[385447956,1757856650236,-480.0,0.00022191,3]
[385447957,1757856650245,-480.0,0.00022191,3]
[385447958,1757856650255,-480.0,0.00022191,3]
[385447959,1757856650265,-484.62812559,0.00022191,3]
[385447960,1757856650275,-480.0,0.00022191,3]
[385447961,1757856650284,-552.71,0.00022191,3]
[385447962,1757856650294,-480.0,0.00022191,3]
[385447963,1757856650304,-1532.6,0.00022191,3]
[385447964,1757856650313,-480.0,0.00022191,3]
[385447965,1757856650323,-480.0,0.00022191,3]
[385447966,1757856650332,-684.43,0.00022191,3]
[385447967,1757856650341,-760.77,0.00022191,3]
[385447968,1757856650350,-480.0,0.00022191,3]
[385447969,1757856650359,-480.0,0.00022191,3]
[385447970,1757856650368,-480.0,0.00022191,3]
[385447971,1757856650378,-713.49,0.00022191,3]
[385447972,1757856650387,-1356.8,0.00022191,3]
[385447973,1757856650397,-380.02521675,0.00022191,3]
[385447974,1757856650405,-480.0,0.00022191,3]
[385447975,1757856650415,-480.0,0.00022191,3]
[385447976,1757856650424,-480.0,0.00022191,3]
[385447977,1757856650434,-480.0,0.00022191,3]
[385447978,1757856650443,-480.0,0.00022191,3]
[385447979,1757856650452,-480.0,0.00022191,3]
[385447980,1757856650462,-511.47435317,0.00022191,3]
[385447981,1757856650472,-480.0,0.00022191,3]
[385447982,1757856650481,-480.0,0.00022191,3]
[385447983,1757856650490,-1332.26,0.00022191,3]
[385447984,1757856650501,-1480.15,0.00022191,3]
[385447985,1757856650511,-480.0,0.00022191,3]
[385447986,1757856650521,-623.07,0.00022191,3]
[385447987,1757856650530,-480.0,0.00022191,3]
[385447988,1757856650543,-480.0,0.00022191,3]
[385447989,1757856650555,-480.0,0.00022191,3]
[385447990,1757856650564,-1000.0,0.00022191,3]
[385447991,1757856650574,-480.0,0.00022191,3]
[385447992,1757856650583,-480.0,0.00022191,3]
[385447993,1757856650592,-480.0,0.00022191,3]
[385447994,1757856650601,-492.13407604,0.00022191,3]
[385447995,1757856650611,-566.66,0.00022191,3]
[385447996,1757856650620,-480.0,0.00022191,3]
[385447997,1757856650629,-480.0,0.00022191,3]
[385447998,1757856650638,-480.0,0.00022191,3]
[385447999,1757856650648,-480.0,0.00022191,3]
[385448000,1757856650657,-480.0,0.00022191,3]
[385448001,1757856650666,-480.0,0.00022191,3]
[385448002,1757856650675,-480.0,0.00022191,3]
[385448003,1757856650685,-480.0,0.00022191,3]
[385448004,1757856650696,-480.0,0.00022191,3]
[385448005,1757856650705,-480.0,0.00022191,3]
[385448006,1757856650714,-480.0,0.00022191,3]
[385448007,1757856650724,-388.12424925,0.00022191,3]
[385448008,1757856650733,-565.32,0.00022191,3]
[385448009,1757856650743,-480.0,0.00022191,3]
[385448010,1757856650753,-483.60747666,0.00022191,3]
[385448011,1757856650763,-480.0,0.00022191,3]
[385448012,1757856650773,-151.0,0.00022191,7]
[385448013,1757856650783,-964.43,0.00022191,3]
[385448014,1757856650792,-480.0,0.00022191,3]
[385448015,1757856650803,-480.0,0.00022191,3]
[385448016,1757856650813,-875.78,0.00022191,3]
[385448017,1757856650822,-480.0,0.00022191,3]
[385448018,1757856650832,-480.0,0.00022191,3]
[385448019,1757856650841,-480.0,0.00022191,3]
[385448020,1757856650850,-480.0,0.00022191,3]
[385448021,1757856650859,-480.0,0.00022191,3]
[385448022,1757856650869,-480.0,0.00022191,3]
[385448023,1757856650879,-480.0,0.00022191,3]
[385448024,1757856650888,-890.19,0.00022191,3]
[385448025,1757856650897,-591.5,0.00022191,3]
[385448026,1757856650906,-480.0,0.00022191,3]
[385448027,1757856650915,-785.42,0.00022191,3]
[385448028,1757856650924,-802.11,0.00022191,3]
[385448029,1757856650934,-480.0,0.00022191,3]
[385448030,1757856650943,-480.0,0.00022191,3]
[385448031,1757856650952,-480.0,0.00022191,3]
[385448032,1757856650962,-480.0,0.00022191,3]
[385448033,1757856650972,-480.0,0.00022191,3]
[385448034,1757856650982,-480.0,0.00022191,3]
[385448035,1757856650991,-480.0,0.00022191,3]
[385448036,1757856651001,-480.0,0.00022191,3]
[385448037,1757856651010,-480.0,0.00022191,3]
[385448038,1757856651020,-639.32,0.00022191,3]
[385448039,1757856651029,-265.73360634,0.00022191,3]
[385448040,1757856651039,-15909.27,0.00022191,3]
[385448041,1757856651048,-480.0,0.00022191,3]
[385448042,1757856651058,-480.0,0.00022191,3]
[385448043,1757856651068,-766.16,0.00022191,3]
[385448044,1757856651078,-197.956351,0.00022191,7]
[385448045,1757856651089,-197.956351,0.00022191,7]
[385448046,1757856651098,-197.956351,0.00022191,7]
[385448047,1757856651107,-197.956351,0.00022191,7]
[385448048,1757856651118,-1105.68,0.00022191,3]
[385448049,1757856651127,-480.0,0.00022191,3]
[385448050,1757856651136,-480.0,0.00022191,3]
[385448051,1757856651146,-350.0,0.00022191,7]
[385448052,1757856651155,-480.0,0.00022191,3]
[385448053,1757856651165,-480.0,0.00022191,3]
[385448054,1757856651173,-350.0,0.00022191,7]
[385448055,1757856651183,-491.89402871,0.00022191,3]
[385448056,1757856651192,-350.0,0.00022191,7]
[385448057,1757856651202,-480.0,0.00022191,3]
[385448058,1757856651212,-766.24,0.00022191,3]
[385448059,1757856651221,-350.0,0.00022191,7]
[385448060,1757856651230,-2307.17,0.00022191,3]
[385448061,1757856651240,-480.0,0.00022191,3]
[385448062,1757856651249,-151.0,0.00022191,7]
[385448063,1757856651258,-480.0,0.00022191,3]
[385448064,1757856651267,-480.0,0.00022191,3]
[385448065,1757856651277,-480.0,0.00022191,3]
[385448066,1757856651286,-172.17624618,0.00022191,3]
[385448067,1757856651296,-1046.65,0.00022191,3]
[385448068,1757856651305,-763.0,0.00022191,3]
[385448069,1757856651315,-480.0,0.00022191,3]
[385448070,1757856651325,-1065.29,0.00022191,3]
[385448071,1757856651334,-480.0,0.00022191,3]
[385448072,1757856651344,-5513.26,0.00022191,3]
[385448073,1757856651353,-485.18998501,0.00022191,3]
[385448074,1757856651362,-480.0,0.00022191,3]
[385448075,1757856651371,-480.0,0.00022191,3]
[385448076,1757856651382,-500.0,0.00022191,3]
[385448077,1757856651393,-480.0,0.00022191,3]
[385448078,1757856651402,-480.0,0.00022191,3]
[385448079,1757856651411,-1301.02,0.00022191,3]
[385448080,1757856651421,-1855.95,0.00022191,3]
[385448081,1757856651431,-480.0,0.00022191,3]
[385448082,1757856651440,-480.0,0.00022191,3]
[385448083,1757856651449,-485.36505383,0.00022191,3]
[385448084,1757856651459,-151.0,0.00022191,7]
[385448085,1757856651468,-480.0,0.00022191,3]
[385448086,1757856651477,-480.0,0.00022191,3]
[385448087,1757856651486,-480.0,0.00022191,3]
[385448088,1757856651495,-480.0,0.00022191,3]
[385448089,1757856651505,-480.0,0.00022191,3]
[385448090,1757856651514,-1212.61,0.00022191,3]
[385448091,1757856651523,-1036.91,0.00022191,3]
[385448092,1757856651535,-480.0,0.00022191,3]
[385448093,1757856651546,-982.6,0.00022191,3]
[385448094,1757856651556,-480.0,0.00022191,3]
[385448095,1757856651565,-585.31554718,0.00022191,3]
[385448096,1757856651575,-460.80676862,0.00022191,3]
[385448097,1757856651584,-151.0,0.00022191,7]
[385448098,1757856651594,-480.0,0.00022191,3]
[385448099,1757856651603,-1373.39,0.00022191,3]
[385448100,1757856651615,-557.06308576,0.00022191,3]
[385448101,1757856651625,-490.46469285,0.00022191,3]
[385448102,1757856651634,-2122.29,0.00022191,3]
[385448103,1757856651643,-480.0,0.00022191,3]
[385448104,1757856651653,-1128.54,0.00022191,3]
[385448105,1757856651662,-480.0,0.00022191,3]
[385448106,1757856651672,-643.88,0.00022191,3]
[385448107,1757856651682,-362.96,0.00022191,2]
[385448108,1757856651691,-486.94039389,0.00022191,3]
[385448109,1757856651701,-480.0,0.00022191,3]
[385448110,1757856651710,-480.0,0.00022191,3]
[385448111,1757856651719,-480.0,0.00022191,3]
[385448112,1757856651728,-494.76533007,0.00022191,3]
[385448113,1757856651738,-480.0,0.00022191,3]
[385448114,1757856651747,-760.95,0.00022191,3]
[385448115,1757856651757,-550.02,0.00022191,3]
[385448116,1757856651766,-480.0,0.00022191,3]
[385448117,1757856651775,-389.28862836,0.00022191,3]
[385448118,1757856651785,-673.6,0.00022191,3]
[385448119,1757856651794,-480.0,0.00022191,3]
[385448120,1757856651803,-1517.87,0.00022191,3]
[385448121,1757856651813,-480.0,0.00022191,3]
[385448122,1757856651823,-27294.52,0.00022191,3]
[385448123,1757856651832,-480.0,0.00022191,3]
[385448124,1757856651841,-480.0,0.00022191,3]
[385448125,1757856651851,-480.0,0.00022191,3]
[385448126,1757856651860,-522.58,0.00022191,3]
[385448127,1757856651870,-200.03261799,0.00022191,3]
[385448128,1757856651879,-480.0,0.00022191,3]
[385448129,1757856651888,-480.0,0.00022191,3]
[385448130,1757856651897,-3637.63,0.00022191,3]
[385448131,1757856651906,-1542.58,0.00022191,3]
[385448132,1757856651915,-599.53,0.00022191,3]
[385448133,1757856651925,-2083.38,0.00022191,3]
[385448134,1757856651934,-743.58,0.00022191,3]
[385448135,1757856651943,-478.24899379,0.00022191,3]
[385448136,1757856651952,-480.0,0.00022191,3]
[385448137,1757856651962,-725.28,0.00022191,3]
[385448138,1757856651971,-480.0,0.00022191,3]
[385448139,1757856651980,-480.0,0.00022191,3]
[385448140,1757856651990,-485.40139364,0.00022191,3]
[385448141,1757856651999,-995.52,0.00022191,3]
[385448142,1757856652008,-1313.75,0.00022191,3]
[385448143,1757856652017,-408.17137678,0.00022191,3]
[385448144,1757856652026,-151.0,0.00022191,7]
[385448145,1757856652035,-555.56,0.00022191,3]
[385448146,1757856652044,-480.0,0.00022191,3]
[385448147,1757856652053,-480.0,0.00022191,3]
[385448148,1757856652062,-480.0,0.00022191,3]
[385448149,1757856652071,-1039.94,0.00022191,3]
[385448150,1757856652080,-480.0,0.00022191,3]
[385448151,1757856652090,-480.0,0.00022191,3]
[385448152,1757856652099,-3037.43,0.00022191,3]
[385448153,1757856652108,-480.0,0.00022191,3]
[385448154,1757856652118,-480.0,0.00022191,3]
[385448155,1757856652126,-876.69,0.00022191,3]
[385448156,1757856652136,-1700.11,0.00022191,3]
[385448157,1757856652145,-1302.33,0.00022191,3]
[385448158,1757856652154,-480.0,0.00022191,3]
[385448159,1757856652163,-480.0,0.00022191,3]
[385448160,1757856652172,-482.7268594,0.00022191,3]
[385448161,1757856652181,-480.0,0.00022191,3]
[385448162,1757856652190,-480.0,0.00022191,3]
[385448163,1757856652199,-7407.79,0.00022191,3]
[385448164,1757856652208,-3291.57,0.00022191,3]
[385448165,1757856652218,-480.0,0.00022191,3]
[385448166,1757856652227,-1629.05,0.00022191,3]
[385448167,1757856652236,-480.0,0.00022191,3]
[385448168,1757856652246,-852.26,0.00022191,3]
[385448169,1757856652255,-861.89,0.00022191,3]
[385448170,1757856652264,-480.0,0.00022191,3]
[385448171,1757856652273,-1831.0,0.00022191,3]
[385448172,1757856652282,-1200.08,0.00022191,3]
[385448173,1757856652293,-3449.63,0.00022191,3]
[385448174,1757856652303,-1729.15,0.00022191,3]
[385448175,1757856652313,-480.0,0.00022191,3]
[385448176,1757856652323,-480.0,0.00022191,3]
[385448177,1757856652334,-1209.18,0.00022191,3]
[385448178,1757856652343,-519.85646042,0.00022191,3]
[385448179,1757856652458,-151.0,0.00022191,7]
[385448180,1757856652468,-482.90839945,0.00022191,3]
[385448181,1757856652477,-480.0,0.00022191,3]
[385448182,1757856652486,-2520.43,0.00022191,3]
[385448183,1757856652495,-480.0,0.00022191,3]
[385448184,1757856652504,-3137.94,0.00022191,3]
[385448185,1757856652513,-480.0,0.00022191,3]
[385448186,1757856652523,-973.85,0.00022191,3]
[385448187,1757856652532,-482.5942701,0.00022191,3]
[385448188,1757856652543,-575.77,0.00022191,3]
[385448189,1757856652553,-480.0,0.00022191,3]
[385448190,1757856652563,-963.53,0.00022191,3]
[385448191,1757856652572,-480.0,0.00022191,3]
[385448192,1757856652582,-386.23740906,0.00022191,3]
[385448193,1757856652591,-481.98128118,0.00022191,3]
[385448194,1757856652600,-1249.44,0.00022191,3]
[385448195,1757856652609,-480.0,0.00022191,3]
[385448196,1757856652617,-480.0,0.00022191,3]
[385448197,1757856652626,-648.13333672,0.00022191,3]
[385448198,1757856652820,-6134.59666328,0.00022191,3]
[385448199,1757856652829,-623.13,0.00022191,3]
[385448200,1757856652839,-4603.43,0.00022191,3]
[385448201,1757856652848,-480.0,0.00022191,3]
[385448202,1757856652857,-492.74291574,0.00022191,3]
[385448203,1757856652867,-4264.94,0.00022191,3]
[385448204,1757856652876,-480.0,0.00022191,3]
[385448205,1757856652885,-480.0,0.00022191,3]
[385448206,1757856652895,-486.14376906,0.00022191,3]
[385448207,1757856652903,-1665.51,0.00022191,3]
[385448208,1757856652912,-904.92,0.00022191,3]
[385448209,1757856652921,-480.0,0.00022191,3]
[385448210,1757856652930,-480.0,0.00022191,3]
[385448211,1757856652939,-500.0,0.00022191,3]
[385448212,1757856652949,-480.0,0.00022191,3]
[385448213,1757856652958,-555.76,0.00022191,3]
[385448214,1757856652967,-480.0,0.00022191,3]
[385448215,1757856652977,-480.0,0.00022191,3]
[385448216,1757856652986,-1309.13,0.00022191,3]
[385448217,1757856652995,-151.0,0.00022191,7]
[385448218,1757856653004,-151.0,0.00022191,7]
[385448219,1757856653014,-480.0,0.00022191,3]
[385448220,1757856653023,-480.0,0.00022191,3]
[385448221,1757856653032,-151.0,0.00022191,7]
[385448222,1757856653042,-151.0,0.00022191,7]
[385448223,1757856653052,-697.64,0.00022191,3]
[385448224,1757856653063,-480.0,0.00022191,3]
[385448225,1757856653072,-480.0,0.00022191,3]
[385448226,1757856653082,-151.0,0.00022191,7]
[385448227,1757856653091,-151.0,0.00022191,7]
[385448228,1757856653102,-480.0,0.00022191,3]
[385448229,1757856653113,-480.0,0.00022191,3]
[385448230,1757856653123,-1334.83,0.00022191,3]
[385448231,1757856653134,-480.0,0.00022191,3]
[385448232,1757856653143,-480.0,0.00022191,2]
[385448233,1757856653153,-480.0,0.00022191,3]
[385448234,1757856653162,-151.0,0.00022191,7]
[385448235,1757856653172,-151.0,0.00022191,7]
[385448236,1757856653183,-2726.64,0.00022191,3]
[385448237,1757856653192,-396.11649269,0.00022191,3]
[385448238,1757856653202,-1209.01,0.00022191,3]
[385448239,1757856653211,-480.0,0.00022191,3]
[385448240,1757856653220,-480.0,0.00022191,3]
[385448241,1757856653231,-480.0,0.00022191,3]
[385448242,1757856653240,-480.0,0.00022191,3]
[385448243,1757856653250,-480.0,0.00022191,3]
[385448244,1757856653259,-934.93,0.00022191,3]
[385448245,1757856653268,-3422.6,0.00022191,3]
[385448246,1757856653277,-482.39717279,0.00022191,3]
[385448247,1757856653286,-4285.06,0.00022191,3]
[385448248,1757856653295,-480.0,0.00022191,3]
[385448249,1757856653306,-265.99250939,0.00022191,3]
[385448250,1757856653317,-2464.61,0.000222,7]
[385448251,1757856653326,-151.0,0.000222,6]
[385448252,1757856653335,-500.0,0.00022208,2]
[385448253,1757856653345,-500.0,0.00022221,5]
[385448254,1757856653354,-500.0,0.00022221,5]
[385448255,1757856653364,-501.4656913,0.00022221,2]
[385448256,1757856653373,-502.88567287,0.00022221,2]
[385448257,1757856653382,-655.76395663,0.00022221,2]
[385448258,1757856653391,-500.0,0.00022221,2]
[385448259,1757856653401,-1000.0,0.00022221,2]
[385448260,1757856653410,-1000.0,0.00022221,2]
[385448261,1757856653419,-501.52711983,0.00022221,2]
[385448262,1757856653428,-485.26301192,0.00022221,2]
[385448263,1757856653438,-1002.8461323,0.00022221,2]
[385448264,1757856653447,-500.0,0.00022221,5]
[385448265,1757856653456,-1000.0,0.00022221,2]
[385448266,1757856653465,-1000.0,0.00022221,2]
[385448267,1757856653475,-1002.12426079,0.00022221,2]
[385448268,1757856653484,-497.27589563,0.00022221,2]
[385448269,1757856653493,-500.0,0.00022221,2]
[385448270,1757856653502,-1000.0,0.00022221,2]
[385448271,1757856653511,-393.34958586,0.00022221,2]
[385448272,1757856653520,-1000.0,0.00022221,2]
[385448273,1757856653529,-1000.0,0.00022221,2]
[385448274,1757856653543,-502.72568923,0.00022221,2]
[385448275,1757856653552,-503.38114305,0.00022221,2]
[385448276,1757856653562,-502.04397861,0.00022221,2]
[385448277,1757856653571,-1000.0,0.00022221,2]
[385448278,1757856653581,-1000.0,0.00022221,2]
[385448279,1757856653590,-500.64990657,0.00022221,2]
[385448280,1757856653599,-1000.0,0.00022221,2]
[385448281,1757856653609,-1001.37998563,0.00022221,2]
[385448282,1757856653620,-151.0,0.00022221,7]
[385448283,1757856653630,-976.0,0.00022261,2]
[385448284,1757856653639,-634.0,0.00022261,2]
[385448285,1757856653648,-2156.0,0.00022261,2]
[385448286,1757856653658,-410.0,0.00022261,2]
[385448287,1757856653667,-151.0,0.000223,8]
[385448288,1757856653676,-151.0,0.00022365,7]
[385448289,1757856653685,-197.956351,0.00022365,7]
[385448290,1757856653694,-197.956351,0.00022365,7]
[385448291,1757856653703,-197.956351,0.00022365,7]
[385448292,1757856653712,-197.956351,0.00022365,7]
[385448293,1757856653721,-350.0,0.00022365,7]
[385448294,1757856653731,-350.0,0.00022365,7]
[385448295,1757856653741,-350.0,0.00022365,7]
[385448296,1757856653750,-350.0,0.00022365,7]
[385448297,1757856653760,-9432.86322948,0.00022365,2]